Cogmind - Beta 11 *** ADVENTURER MODE // 2022.03.24 @ 18:45:49 Player: Zeke Result: Destroyed by G-34 Mercenary with Small Laser Performance ------------- Evolutions (0) 0 Regions Visited (2) 400 Robots Destroyed (37) 185 Value Destroyed (606) 606 Prototype IDs (0) 0 Alien Tech Used (0) 0 Bonus (60) 60 TOTAL SCORE: 1251 Bonus ------- Follower Combat Kills 60 Cogmind --------- Core Integrity 0/250 Matter 300/300 Energy 100/100 System Corruption 0% Temperature Cool (6) Movement Walking (120) Location -10/Mines Parts ------- > --- POWER (1) -------- (None) > --- PROPULSION (2) --- Aluminum Leg > --- UTILITY (2) ------ Small Storage Unit Signal Interpreter > --- WEAPON (2) ------- Hammer > --- INVENTORY (8) ---- Ion Engine Aluminum Leg Aluminum Leg Structural Scanner Terrain Scanner Seismic Detector Mining Laser Plasma Cutter Peak State ------------ > --- POWER ------------ Ion Engine > --- PROPULSION ------- Aluminum Leg Makeshift Leg > --- UTILITY ---------- Small Storage Unit Signal Interpreter > --- WEAPON ----------- Light Cannon Hammer > --- INVENTORY -------- Ion Engine Aluminum Leg Aluminum Leg Structural Scanner Terrain Scanner Seismic Detector Mining Laser Plasma Cutter [Rating: 10] Favorites ----------- Power Ion Engine Engine Ion Engine Propulsion Aluminum Leg Leg Aluminum Leg Utility Small Storage Unit Device Terrain Scanner Storage Small Storage Unit Processor Signal Interpreter Weapon Plasma Cutter Ballistic Gun Assault Rifle Ballistic Cannon Light Cannon Special Weapon Plasma Cutter Impact Weapon Hammer Build | -11 -10 -10 ------- Run | Scr Mat Min Slots Evolved . | . . . Power . | . . . Propulsion . | . . . Utility . | . . . Weapon . | . . . Parts Attached 44 | 6 23 15 Power 4 | 1 2 1 Engine 4 | 1 2 1 Core . | . . . Reactor . | . . . Propulsion 9 | 2 3 4 Treads . | . . . Leg 9 | 2 3 4 Wheel . | . . . Hover . | . . . Flight . | . . . Utility 4 | 1 3 . Device 2 | . 2 . Storage 1 | 1 . . Processor 1 | . 1 . Hackware . | . . . Protection . | . . . Artifact . | . . . Weapon 27 | 2 15 10 Energy Gun . | . . . Energy Cannon . | . . . Ballistic Gun 4 | 2 2 . Ballistic Cannon 5 | . 4 1 Launcher . | . . . Special Weapon 13 | . 8 5 Impact Weapon 5 | . 1 4 Slashing Weapon . | . . . Piercing Weapon . | . . . Special Melee Weapon . | . . . Unidentified Prototypes . | . . . Parts Lost 5 | . 1 4 Power 1 | . . 1 Propulsion 1 | . . 1 Utility . | . . . Weapon 3 | . 1 2 Highest Loss Streak 2 | . 1 2 To Critical Strikes . | . . . Average Slot Usage (%) 97 | . 99 94 Engine 13 | . 14 13 Leg 27 | . 28 27 Device 8 | . 11 . Storage 14 | . 14 14 Processor 4 | . 1 14 Ballistic Gun 1 | . 1 . Ballistic Cannon 7 | . 6 7 Special Weapon 11 | . 13 5 Impact Weapon 7 | . 6 10 Naked Turns . | . . . Heaviest Build 16 | 14 16 15 Greatest Support 30 | 20 20 30 Greatest Overweight (x) . | . . . Average Overweight (x) . | . . . Largest Inventory Capacity 8 | 8 8 8 Average Capacity 7 | 7 8 8 Most Carried 8 | 3 8 8 Average Carried 6 | . 6 7 Final Capacity 8 | 8 8 8 Final Carried 8 | . 7 8 Class Distribution -------------------- 89% | Mutant 10% | Scavenger-Mutant Dominant Class ---------------- Mutant | -10/Materials Mutant | -10/Mines Resources | -11 -10 -10 ----------- Run | Scr Mat Min Matter Collected 827 | 199 465 163 Remotely . | . . . Salvage Created 1048 | . 596 452 Parts 75 | . 53 22 Haulers Intercepted 2 | . 2 . Recyclers Shooed 3 | . 2 1 Parts Field Recycled . | . . . Retrieved Matter . | . . . Parts Self-Destructed . | . . . Prevented . | . . . Kills | -11 -10 -10 ------- Run | Scr Mat Min Combat Hostiles Destroyed 19 | . 10 9 Melee 9 | . 2 7 Guns 6 | . 6 . Cannons 2 | . 2 . Classes Destroyed 9 | . 7 2 Worker 8 | . 4 4 Builder 3 | . 3 . Tunneler 2 | . . 2 Hauler 2 | . 2 . Mechanic 1 | . 1 . Watcher 3 | . 3 . Swarmer 6 | . 6 . Grunt 12 | . 4 8 Assembled 1 | . . 1 Best Kill Streak 4 | . 4 2 Combat Bots Only 3 | . 3 2 Max Kills in Single Turn 1 | . 1 1 Gunslinging . | . . . Exploded . | . . . Melee 1 | . 1 1 Uniques/NPCs Destroyed . | . . . Combat | -11 -10 -10 -------- Run | Scr Mat Min Damage Taken 1034 | . 343 691 Core 257 | . 71 186 Absorbed by Shields . | . . . Core Remaining (%) 100 | 100 . . Volleys Fired 104 | . 68 36 Largest 2 | . 2 2 Hottest 100 | . 100 100 Shots Fired 146 | . 107 39 Gun 32 | . 32 . Cannon 24 | . 22 2 Launcher . | . . . Special 90 | . 53 37 Kinetic 56 | . 54 2 Thermal 90 | . 53 37 Explosive . | . . . Electromagnetic . | . . . Robot Hit Streak 9 | . 9 8 Robot Miss Streak 3 | . 3 2 Penetration Max . | . . . Secondary Targets 1 | . 1 . Max Gunslinging Chain 1 | . 1 . Shots Hit Robots 116 | . 76 40 Core Hits 37 | . 24 13 Critical Kills . | . . . Critical Parts Destroyed 6 | . . 6 Critical Strikes 9 | . 3 6 Blast 1 | . 1 . Smash 6 | . . 6 Sever 2 | . 2 . Melee Attacks 45 | . 11 34 Impact 45 | . 11 34 Slashing . | . . . Piercing . | . . . Sneak Attacks 8 | . 4 4 Combat Hostiles 1 | . . 1 Follow-up Attacks . | . . . Damage Inflicted 2049 | . 1143 906 Guns 264 | . 264 . Cannons 308 | . 288 20 Explosions . | . . . Melee 1062 | . 273 789 Ramming . | . . . Kinetic 572 | . 552 20 Thermal 415 | . 318 97 Explosive . | . . . Electromagnetic . | . . . Impact 1062 | . 273 789 Slashing . | . . . Piercing . | . . . Highest Corruption . | . . . Average Corruption . | . . . Corruption Purged . | . . . Corruption Blocked . | . . . Overload Shots . | . . . Overflow Damage 257 | . 72 185 Projectiles . | . . . Explosions . | . . . Melee 257 | . 72 185 Knockbacks 12 | . 7 5 Impact 7 | . 3 4 Kinetic 3 | . 3 . Secondary 2 | . 1 1 Self-Inflicted Damage . | . . . Shots . | . . . Rammed . | . . . Targets Rammed . | . . . Kicked . | . . . Crushed . | . . . Highest Temperature 104 | . 20 104 Average Temperature 40 | . 7 42 Received Heat Transfer 564 | . 102 462 Siege Activations . | . . . Robots Corrupted . | . . . Combat Hostiles . | . . . Parts Fried 6 | . 3 3 Impact Corruptions 13 | . 5 8 Robots Melted . | . . . Combat Hostiles . | . . . Parts Melted . | . . . Heat Transferred 1382 | . 1073 309 Parts Sabotaged . | . . . Parts Stolen . | . . . Parts Stripped . | . . . Power Chain Reactions . | . . . Missiles Intercepted . | . . . Alert | -11 -10 -10 ------- Run | Scr Mat Min Peak Influence 231 | . 231 129 Initial . | . . . Average 40 | . 31 73 Maximum Alert Level 1 | . 1 . Low Security (%) 98 | 100 98 100 Level 1 1 | . 1 . Level 2 . | . . . Level 3 . | . . . Level 4 . | . . . Level 5 . | . . . High Security . | . . . Max Security . | . . . Squads Dispatched 2 | . 2 . Investigation 2 | . 2 . Extermination . | . . . Reinforcement . | . . . Assault . | . . . Garrison . | . . . Intercept . | . . . Searches Triggered . | . . . Construction Impeded . | . . . Haulers Reinforced . | . . . Active Scanning Responses . | . . . Cargo Convoy Interrupts . | . . . Stealth | -11 -10 -10 --------- Run | Scr Mat Min Distress Signals . | . . . Communications Jammed . | . . . Distress Signals . | . . . Times Spotted 34 | . 19 15 Peak Tracking Total 5 | . 5 4 Tactical Retreats 1 | . . 1 Traps | -11 -10 -10 ------- Run | Scr Mat Min Traps Triggered 2 | . 2 . Indirectly . | . . . Trap Hack Attempts . | . . . Triggered . | . . . Disarmed . | . . . Reprogrammed . | . . . Reused . | . . . Traps Extracted . | . . . Installed . | . . . Triggered . | . . . Machines | -11 -10 -10 ---------- Run | Scr Mat Min Machines Disabled 1 | . . 1 Max in Single Turn 1 | . . 1 Machines Sabotaged . | . . . Garrisons Compromised . | . . . Overloaded Fab Kills . | . . . Hacking | -11 -10 -10 --------- Run | Scr Mat Min Machines Accessed . | . . . Terminals . | . . . Fabricators . | . . . Repair Stations . | . . . Recycling Units . | . . . Scanalyzers . | . . . Garrison Access . | . . . Total Hacks . | . . . Successful . | . . . Failed . | . . . Catastrophic . | . . . Database Lockouts . | . . . Manual . | . . . Terminals . | . . . Fabricators . | . . . Repair Stations . | . . . Recycling Units . | . . . Scanalyzers . | . . . Garrison Access . | . . . Terminal Hacks . | . . . Fabricator Hacks . | . . . Repair Station Hacks . | . . . Recycling Unit Hacks . | . . . Scanalyzer . | . . . Garrison Access Hacks . | . . . Unauthorized Hacks . | . . . Terminals . | . . . Fabricators . | . . . Repair Stations . | . . . Recycling Units . | . . . Scanalyzers . | . . . Garrison Access . | . . . Data Cores Recovered . | . . . Used . | . . . Hacking Detections . | . . . Full Trace Events . | . . . Feedback Events . | . . . Feedback Blocked . | . . . Robot Schematics Acquired . | . . . Robots Built . | . . . Authchips . | . . . Time . | . . . Total Robot Build Rating . | . . . Part Schematics Acquired . | . . . Parts Built . | . . . Authchips . | . . . Time . | . . . Total Part Build Rating . | . . . Parts Repaired . | . . . Time . | . . . Parts Recycled . | . . . Recycled Matter . | . . . Retrieved Matter . | . . . Retrieved Components . | . . . Parts Scanalyzed . | . . . Part Schematics Acquired . | . . . Parts Damaged . | . . . Bothacking | -11 -10 -10 ------------ Run | Scr Mat Min Used RIF Installer . | . . . Robots Hacked . | . . . Non-combat . | . . . Combat . | . . . Robot Hacks Applied . | . . . Relay Couplers Released . | . . . Fabnet Peak Effective % . | . . . Robots Rewired . | . . . Allies Hacked . | . . . Hacks Repelled . | . . . Allies | -11 -10 -10 -------- Run | Scr Mat Min Total Allies 2 | . . 2 Largest Group 2 | . . 2 Highest-Rated Group 43 | . . 43 Highest-Rated Ally 31 | . . 31 Total Orders . | . . . Ally Attacks 7 | . . 7 Total Damage 148 | . . 148 Kills 2 | . . 2 Allies Corrupted . | . . . Allies Melted . | . . . Intel | -11 -10 -10 ------- Run | Scr Mat Min Robot Analysis Total . | . . . Derelict Logs Recovered 2 | . . 2 Drone Launches . | . . . Drone Recoveries . | . . . Exploration | -11 -10 -10 ------------- Run | Scr Mat Min Turns Passed 3219 | 111 2306 802 Spaces Moved 2114 | 59 1637 418 Core 5 | 5 . . Treads . | . . . Legs 2109 | 54 1637 418 Wheels . | . . . Hover . | . . . Flight . | . . . Fastest Speed 50 | 50 120 120 Average Speed 120 | 114 120 124 Slowest Speed 130 | 120 120 130 Overloaded Moves . | . . . Propulsion Burnouts . | . . . Robots Hopped . | . . . Cave-ins Triggered . | . . . Exploration Rate (%) 55 | 4 99 62 Regions Visited 2 Branch Regions 1 Pre-discovered Areas . | . . . Known Exits Taken 1 | . 1 . Unknown Exits Taken 1 | 1 . . Scrap Searched . | . . . Spaces Dug 3 | . 1 2 Terrain Destroyed 5 | . 1 4 Melee . | . . . Projectile 5 | . 1 4 AOE . | . . . Terrain Rammed . | . . . Walls Destroyed . | . . . Machines Disabled . | . . . Actions | -11 -10 -10 --------- Run | Scr Mat Min Total 2426 | 102 1793 531 Wait 87 | 32 31 24 Move 2112 | 58 1636 418 Hop . | . . . Pick Up 25 | 6 16 3 Fast Attach . | . . . Attach 10 | 6 3 1 Detach . | . . . Swap 34 | . 20 14 Drop 9 | . 8 1 Fire 104 | . 68 36 Melee 45 | . 11 34 Ram . | . . . Kick . | . . . Crush . | . . . Escape Stasis . | . . . Rewire . | . . . Trap . | . . . Miscellaneous . | . . . Route ------- -11/Scrapyard -10/Materials (discovered 5 exits: *Mat x3 / *Min x2) -10/Mines History --------- Turn | Location | Event 17 | -11/Scrapyard | Discovered new exit (range 15) 112 | -11/Scrapyard | Entered Materials 313 | -10/Materials | Build established: Mutant 424 | -10/Materials | Discovered new exit (range 16) 563 | -10/Materials | Discovered new exit (range 4) 614 | -10/Materials | Discovered new exit (range 8) 941 | -10/Materials | Discovered new exit (range 8) 1090 | -10/Materials | Discovered new exit (range 10) 2112 | -10/Materials | Build established: Scavenger-Mutant 2170 | -10/Materials | Identified exit to Materials 2417 | -10/Materials | Identified exit to Mines 2418 | -10/Materials | Entered Mines 2439 | -10/Mines | Build established: Mutant 2444 | -10/Mines | Learned 2 Materials zone layouts 2450 | -10/Mines | Learned Materials emergency access door positions 2632 | -10/Mines | Core integrity fell below 50% 2699 | -10/Mines | Excavation squad dispatched 2699 | -10/Mines | A large section of the Mines collapsed 2949 | -10/Mines | Excavation squad dispatched 3168 | -10/Mines | Core integrity fell below 20% 3199 | -10/Mines | Excavation squad dispatched 3220 | -10/Mines | Destroyed by G-34 Mercenary with Small Laser Last Messages --------------- 03069_ G-34 Mercenary destroyed. 03073_ K-01 Serf cleans the Pressure Siphon. 03074_ K-01 Serf collects debris. 03076_ Sneak attack on K-01 Serf. 03076_ K-01 Serf destroyed. 03077_ K-01 Serf cleans the Pressure Siphon. 03079_ K-01 Serf collects debris. 03080_ Lgt. Cannon destroyed. 03081_ K-01 Serf collects debris. 03191_ T-07 Excavator is excavating. 03195_ Sneak attack on T-07 Excavator. 03195_ T-07 Excavator destroyed. 03199_ ALERT: Derelict activity in mines confirmed. Dispatching additional escorted excavation squad. 03204_ Ion Engine destroyed. 03210_ Mak. Leg destroyed. 03210_ G-34 Mercenary destroyed. 03218_ G-34 Mercenary suffers critical hit (Smash). 03218_ Destroyed Ion Engine. 03218_ G-34 Mercenary system corrupted by crushing effect. Map ----- +----------------------------------------------------+ | #???# ##??## #????????????? | | #???# ##?### #######??????? | | #???## ###?## ## ##?????? | | #????#####??## #?????? | | #??????????## #?????? | | #??????????# ##?????? | | #??????????## #####??????? | | #???????????# ####??????????? | | #??????????# ####?????????????? | | #??????????# #?????????????????? | | #??????????# #??????????????????? | | #??????????###???????????????????? | | ###########??????????????????????? | | #??????????????????????? | | #### #### #??????????????????????? | | ???# #??# ##?????????????????????? | | ???# #### ##????????????????????? | | ???# ##???????????????????? | | ???####### ###?????????????????? | | ?????????# ##????????????????? | | ?????????# #???????#####????? | | ????????## #???????#%=*#????? | | ????????# #???????##!|#????? | | ????# ## #????????# ###??? | | ???# ### #???????## % ##?? | | ??# $ ####?# #????####@ #?? | | ?# #?????# #???## g g"" #?? | | ?# ??????# #??## """ #?? | | ?## ???????# #### """ #?? | | ??###????????# ##?? | | ?????????????# ######??? | | ?????????????#############???????? | | ?????????????????????????????????? | | | | | | | | | | | | | | | | | | | | | | | | | | | | | | | | | | | +----------------------------------------------------+ Best States ------------- Heat Dissipation 25 Energy Generation 10 Energy Capacity 250 Matter Stores 300 Matter Capacity 300 Sight Range 16 Terrain Scan Range 14 Terrain Scan Density 10 Resistance: KI 20 Resistance: TH 20 Resistance: EX 20 Resistance: EM 20 Resistance: I 20 Resistance: S 20 Resistance: P 20 Evasion (%) 55 Offensive Hacking 10 Item Schematics ----------------- None Robot Schematics ------------------ None Fabricated ------------ Nothing Alien Tech Used ----------------- None Achievements -------------- None Challenges ------------ None Game ------ Seed RemoteImpulseTerminator Manual? 0 Play Time 00:44:40 Cumulative 18.2 hours Start 2022.03.24 @ 17:19:26 End 2022.03.24 @ 18:45:49 Sessions 3 Manual Loads 0 Difficulty Adventurer Special Mode None Game No. 9 Rogue 0 Adventurer 9 Explorer 0 Win Type - Total 0 Types 0/0/0/0/0/0/0/0/0 Lore% 18 Gallery% 16 Achievement% 17 Wizard Run 0 Options --------- ASCII 0 Keyboard 0 Movement Mouse Keybinds 0 Fullscreen 2 Font 24/Smallcaps Map View 76x50 Tactical HUD 1 Map Filters NONE Filters NONE Steam 1 RUN: 33f7180b-2c6c-4e34-9170-b15b6139c697